lending/lending_fUSD_20241103
["ID","MTS","AMOUNT","RATE_DAILY","PERIOD"]
[341195083,1730602238993,-3010.001,0.00014572,2]
[341195085,1730602239004,-77.43167951,0.00014572,2]
[341195087,1730602239013,-455.23800894,0.00014578,2]
[341195089,1730602239025,-64.56199106,0.00014578,2]
[341195091,1730602239035,-618.00861913,0.00014599,2]
[341195093,1730602239046,-1262.85992103,0.00014599,2]
[341195095,1730602239056,-178.417,0.000146,2]
[341195097,1730602239065,-787.85,0.00014603,2]
[341195099,1730602239075,-839.4,0.00014822,2]
[341195102,1730602239085,-150.0,0.00014846,2]
[341195104,1730602239097,-150.0,0.00015123,2]
[341195106,1730602239106,-6807.97,0.00015123,2]
[341195108,1730602239115,-187.27,0.00015164,2]
[341195110,1730602239124,-390.72,0.00015164,2]
[341195112,1730602239133,-618.72,0.00015164,2]
[341195114,1730602239142,-2295.41780437,0.00015164,2]
[341195116,1730602239153,-311.91709135,0.00015164,2]
[341195118,1730602239164,-13603.8,0.00015164,2]
[341195120,1730602239175,-258.61510428,0.00015164,2]
[341195122,1730602239186,-2888.39695815,0.00015216,2]
[341195126,1730602239213,-276.30318746,0.00015216,2]
[341195232,1730602240231,-9238.3793149,0.00015216,2]
[341195234,1730602240242,-1375.17814791,0.00015216,2]
[341195238,1730602240310,-3627.74239158,0.00015216,2]
[341195239,1730602240319,-25357.8114,0.00015315,2]
[341195240,1730602240328,-11131.1384,0.00015315,2]
[341195241,1730602240337,-1740.09092835,0.00015332,2]
[341195242,1730602240346,-5838.92846998,0.00015341,2]
[341195243,1730602240356,-176.63,0.00015342,2]
[341195244,1730602240365,-152.43,0.00015342,2]
[341195245,1730602240375,-1606.83,0.00015362,2]
[341195246,1730602240384,-1606.83,0.0001537,2]
[341195247,1730602240393,-1606.83,0.00015378,2]
[341195248,1730602240402,-1606.83,0.00015386,2]
[341195249,1730602240411,-1606.83,0.00015394,2]
[341195250,1730602240421,-1606.83,0.00015402,2]
[341195251,1730602240430,-1292.37,0.00015405,2]
[341195252,1730602240443,-1292.37,0.00015405,2]
[341195253,1730602240452,-161.4169152,0.00015407,2]
[341195254,1730602240462,-1606.83,0.0001541,2]
[341195255,1730602240472,-151.0,0.00015415,2]
[341195256,1730602240482,-198.011822,0.00015415,2]
[341195257,1730602240492,-275.579289,0.00015415,2]
[341195258,1730602240501,-151.0,0.00015415,2]
[341195259,1730602240511,-275.579289,0.00015415,2]
[341195260,1730602240520,-580.300353,0.00015415,2]
[341195261,1730602240530,-580.300353,0.00015415,2]
[341195262,1730602240540,-176.090299,0.00015415,2]
[341195263,1730602240550,-156.007366,0.00015415,2]
[341195264,1730602240559,-17022.41719922,0.00015415,2]
[341195265,1730602240612,-1488.12648358,0.00015415,2]
[341195266,1730602240623,-611.39406327,0.00015415,2]
[341195267,1730602240634,-340.64000005,0.00015415,2]
[341195268,1730602240645,-423.7948,0.00015415,2]
[341195270,1730602240684,-2043.6,0.00015415,2]
[341195272,1730602240695,-3399.7,0.00015415,2]
[341195274,1730602240706,-394.72655386,0.00015415,2]
[341195296,1730602245253,-202.75567051,0.00014246,2]
[341195297,1730602245262,-545.1234685,0.00015415,2]
[341195298,1730602245274,-612.5,0.00015415,2]
[341195299,1730602245285,-1700.5,0.00015415,2]
[341195300,1730602245296,-4713.92799999,0.00015415,2]
[341195301,1730602245307,-550.0,0.00015415,2]
[341195302,1730602245319,-15969.69664,0.00015415,2]
[341195303,1730602245327,-29039.60003,0.00015415,2]
[341195304,1730602245336,-4487.22478597,0.00015415,2]
[341195305,1730602245480,-847.58446831,0.00015415,2]
[341195308,1730602245493,-39952.37140725,0.00015415,2]
[341195310,1730602245503,-1606.83,0.00015418,2]
[341195312,1730602245513,-1606.83,0.00015426,2]
[341195314,1730602245523,-1606.83,0.00015434,2]
[341195316,1730602245532,-1606.83,0.00015442,2]
[341195318,1730602245542,-1606.83,0.0001545,2]
[341195320,1730602245552,-1606.83,0.00015458,2]
[341195322,1730602245562,-1606.83,0.00015467,2]
[341195324,1730602245571,-500.0,0.00015473,2]
[341195326,1730602245581,-1606.83,0.00015475,2]
[341195327,1730602245591,-1606.83,0.00015483,2]
[341195329,1730602245600,-1606.83,0.00015491,2]
[341195331,1730602245610,-1606.83,0.00015499,2]
[341195333,1730602245620,-1606.83,0.00015507,2]
[341195335,1730602245630,-1606.83,0.00015515,2]
[341195337,1730602245640,-839.4,0.00015528,2]
[341195339,1730602245650,-425.39231882,0.00015675,2]
[341195341,1730602245660,-1801.1695,0.000158,2]
[341195343,1730602245670,-1000.0,0.00015831,2]
[341195344,1730602245680,-1292.37,0.00015894,2]
[341195345,1730602245695,-154.52366931,0.000159,2]
[341195346,1730602245704,-229.84198255,0.000159,2]
[341195347,1730602245713,-13173.5122798,0.00015903,2]
[341195348,1730602245723,-504.27177266,0.00015973,2]
[341195349,1730602245733,-459.62719189,0.00015973,2]
[341195350,1730602245742,-501.37311369,0.00015973,2]
[341195351,1730602245752,-300.0,0.00015987,2]
[341195352,1730602245762,-151.0,0.0001599,2]
[341195353,1730602245772,-275.579289,0.0001599,2]
[341195354,1730602245782,-151.0,0.0001599,2]
[341195355,1730602245792,-275.579289,0.0001599,2]
[341195356,1730602245801,-580.300353,0.0001599,2]
[341195357,1730602245811,-580.300353,0.0001599,2]
[341195358,1730602245820,-1292.37,0.0001599,2]
[341195359,1730602245830,-1292.37,0.0001599,2]
[341195360,1730602245839,-1675.27985383,0.0001599,2]
[341195361,1730602245850,-376699.29243683,0.00016,2]
[341195362,1730602245863,-5832.60451984,0.00016,2]
[341195382,1730602246205,-136344.61095713,0.00016,2]
[341195384,1730602246242,-760.0,0.00016,2]
[341195385,1730602246254,-250.00001,0.00016,2]
[341195386,1730602246265,-3424.5,0.00016,2]
[341195387,1730602246279,-78500.32986002,0.00016,2]
[341195388,1730602246291,-2046.0,0.00016,2]
[341195389,1730602246302,-490.00000001,0.00016,2]
[341195392,1730602246670,-47863.72771384,0.00016,2]
[341195393,1730602246704,-612.5,0.00016,2]
[341195394,1730602328085,177.88,0.00024877,30]
[341195395,1730602635774,150.0,0.0001309,2]
[341195396,1730602635796,50.0,0.0001309,2]
[341195397,1730602713551,150.0,0.00013519,2]
[341195398,1730602713572,150.0,0.00013519,2]
[341195399,1730602713593,150.0,0.00013519,2]
[341195400,1730602713613,150.0,0.00013519,2]
[341195401,1730602713634,150.0,0.00013519,2]
[341195402,1730602713655,150.0,0.00013519,2]
[341195403,1730602713676,56.31,0.00013519,2]
[341195404,1730602763565,150.0,0.00013636,2]
[341195405,1730602763585,50.63167316,0.00013636,2]
[341195406,1730602812586,177.88,0.00024877,30]
[341195410,1730603137004,-1356.55130187,0.00014511,2]
[341195411,1730603147720,-226.93057992,0.00014438,2]
[341195412,1730603148320,-203.25731013,0.00014438,2]
[341195414,1730603250866,-267.43,0.00014434,2]
[341195415,1730603267455,150.0,0.00012516,2]
[341195416,1730603267476,150.0,0.00012516,2]
[341195417,1730603267498,150.0,0.00012516,2]
[341195418,1730603267518,150.0,0.00012516,2]
[341195419,1730603267539,150.0,0.00012516,2]
[341195420,1730603267663,150.0,0.00012516,2]
[341195421,1730603267686,46.59,0.00012516,2]
[341195422,1730603298038,-309.72,0.00014425,2]
[341195423,1730603341623,-250.0,0.00014429,2]
[341195424,1730603430099,-200.0,0.00014468,2]
[341195428,1730603432407,-1538.52,0.00014477,2]
[341195429,1730603432416,-174.95,0.00014501,2]
[341195430,1730603432425,-431.90869813,0.00014511,2]
[341195431,1730603432434,-500.0,0.00014532,2]
[341195432,1730603432443,-52.62470669,0.00014538,2]
[341195433,1730603432454,-693.44,0.00014538,2]
[341195434,1730603432465,-675.65734826,0.00014538,2]
[341195435,1730603432479,-366.38616927,0.00014538,2]
[341195436,1730603432489,-467.68194578,0.00014538,2]
[341195437,1730603432500,-132.31805422,0.00014538,2]
[341195438,1730603432509,-300.60194578,0.00014589,2]
[341195439,1730603438794,-265.04805422,0.00014589,2]
[341195440,1730603438803,-335.76,0.00014687,2]
[341195441,1730603438812,-23900.0,0.00014728,2]
[341195442,1730603438822,-946.59,0.0001478,2]
[341195443,1730603438830,-600.0,0.00014904,2]
[341195444,1730603438839,-1499.99,0.00014941,2]
[341195445,1730603438852,-169.11375,0.00015,2]
[341195446,1730603438862,-250.0,0.00015033,2]
[341195447,1730603438873,-168.6,0.00015047,2]
[341195448,1730603438884,-150.0,0.00015047,2]
[341195449,1730603438894,-823.3191,0.00015141,2]
[341195451,1730603438905,-150.0,0.00015177,2]
[341195453,1730603438914,-223.68572892,0.000152,2]
[341195455,1730603438927,-167.67,0.00015209,2]
[341195457,1730603438937,-5904.0922,0.00015241,2]
[341195459,1730603438947,-3209.4585,0.00015315,2]
[341195461,1730603438957,-6475.308,0.00015315,2]
[341195463,1730603438966,-161.28,0.00015342,2]
[341195465,1730603438980,-155.26,0.00015342,2]
[341195467,1730603438989,-335.76,0.00015421,2]
[341195469,1730603438998,-554.90016477,0.0001552,2]
[341195470,1730603439007,-400.0,0.00015794,2]
[341195472,1730603439016,-263.0332,0.000158,2]
[341195474,1730603439025,-2016.4654,0.000158,2]
[341195476,1730603439034,-2102.201,0.000158,2]
[341195479,1730603439046,-425.39231882,0.00015835,2]
[341195481,1730603439055,-294.5,0.00015881,2]
[341195483,1730603439064,-345.04836435,0.00015899,2]
[341195485,1730603439075,-227.4758,0.000159,2]
[341195487,1730603439085,-6084.5171,0.000159,2]
[341195489,1730603439094,-265.0984,0.000159,2]
[341195491,1730603439104,-8162.1658,0.000159,2]
[341195493,1730603439114,-1235.0731,0.000159,2]
[341195495,1730603439123,-1000.0,0.000159,2]
[341195497,1730603439132,-171.122,0.000159,2]
[341195499,1730603439141,-5516.7169,0.000159,2]
[341195501,1730603439151,-1000.0,0.000159,2]
[341195503,1730603439160,-2500.0,0.000159,2]
[341195505,1730603439169,-183.53056244,0.000159,2]
[341195534,1730603440602,-316.46943756,0.000159,2]
[341195535,1730603440613,-2851.95040082,0.00015925,2]
[341195536,1730603440623,-169.37,0.00015934,2]
[341195537,1730603440635,-821.53,0.0001599,2]
[341195538,1730603440645,-9277.03603056,0.00016,2]
[341195539,1730603440744,-1004.80374112,0.00016,2]
[341195540,1730603440754,-136495.89473362,0.00016,2]
[341195541,1730603440895,-380.01741222,0.00016,2]
[341195542,1730603440907,-490.91409287,0.00016,2]
[341195612,1730603443368,-5020.27904884,0.00016,2]
[341195616,1730603444393,-2500.0,0.000159,2]
[341195618,1730603444403,-7412.37430068,0.00016,2]
[341195619,1730603444414,-10098.7348342,0.00016,2]
[341195620,1730603444744,-14277.51072101,0.00016,2]
[341195621,1730603444754,-12338.9387291,0.00016025,2]
[341195622,1730603444763,-6259.0692881,0.00016036,2]
[341195623,1730603444773,-823.32,0.00016116,2]
[341195624,1730603444783,-335.76,0.00016156,2]
[341195625,1730603444792,-267.43,0.00016238,2]
[341195626,1730603444802,-600.0,0.00016356,2]
[341195627,1730603444811,-364.06,0.00016575,2]
[341195628,1730603444821,-156.65,0.00016712,2]
[341195629,1730603444831,-335.76,0.0001689,2]
[341195630,1730603444840,-946.59,0.00017044,2]
[341195631,1730603444851,-364.06,0.00017175,2]
[341195632,1730603444860,-162.7,0.00017191,2]
[341195633,1730603444869,-552.60753789,0.00017208,2]
[341195634,1730603444878,-150.95735601,0.00017208,2]
[341195635,1730603444888,-294.5,0.00017251,2]
[341195636,1730603444897,-335.76,0.00017625,2]
[341195637,1730603444906,-400.0,0.00017768,2]
[341195638,1730603444916,-364.06,0.00017775,2]
[341195639,1730603444927,-267.43,0.00018042,2]
[341195640,1730603444937,-180.0,0.00018082,2]
[341195641,1730603444946,-600.0,0.00018173,2]
[341195642,1730603444956,-163.03,0.00018232,2]
[341195643,1730603444966,-167.1,0.00018337,2]
[341195644,1730603444975,-364.06,0.00018375,2]
[341195645,1730603444987,-162.7,0.00018911,2]
[341195646,1730603444997,-364.06,0.00018975,2]
[341195647,1730603445007,-167.67,0.00019011,2]
[341195648,1730603445017,-2851.95040076,0.00019077,2]
[341195649,1730603445027,-268.25,0.00019178,2]
[341195650,1730603445037,-162.16697607,0.000193,2]
[341195651,1730603445047,-946.59,0.00019308,2]
[341195652,1730603445057,-349.0,0.000194,2]
[341195653,1730603445068,-2134.0,0.000194,2]
[341195654,1730603445078,-807.32,0.00019726,2]
[341195655,1730603445089,-400.0,0.00019742,2]
[341195656,1730603445099,-267.43,0.00019847,2]
[341195657,1730603445109,-51.14773365,0.000199,2]
[341195662,1730603446434,-397.677569,0.00016327,2]
[341195663,1730603446444,-971.85152861,0.000199,2]
[341195664,1730603446455,-605.29836974,0.000199,2]
[341195665,1730603446465,-174.59619363,0.000199,2]
[341195697,1730603475018,151.76411984,0.00025999,30]
[341195698,1730603595162,162.59660624,0.00015,7]
[341195705,1730604320009,150.0,9e-05,2]
[341195706,1730604320032,150.0,9e-05,2]
[341195707,1730604320055,150.0,9e-05,2]
[341195708,1730604320078,150.0,9e-05,2]
[341195709,1730604320100,150.0,9e-05,2]
[341195710,1730604320126,150.0,9e-05,2]
[341195711,1730604320153,150.0,9e-05,2]
[341195712,1730604320176,150.0,9e-05,2]
[341195713,1730604320197,150.0,9e-05,2]
[341195714,1730604320218,150.0,9e-05,2]
[341195715,1730604320240,150.0,9e-05,2]
[341195716,1730604320261,150.0,9e-05,2]
[341195717,1730604320282,150.0,9e-05,2]
[341195718,1730604320303,150.0,9e-05,2]
[341195719,1730604320324,150.0,9e-05,2]
[341195720,1730604320345,150.0,9e-05,2]
[341195721,1730604320367,150.0,9e-05,2]
[341195722,1730604320390,150.0,9e-05,2]
[341195723,1730604320412,150.0,9e-05,2]
[341195724,1730604320433,150.0,9e-05,2]
[341195725,1730604320461,1656.85582671,9e-05,2]
[341195726,1730604336889,150.0,9e-05,2]
[341195727,1730604336910,150.0,9e-05,2]
[341195728,1730604336931,150.0,9e-05,2]
[341195729,1730604336951,284.64956971,9e-05,2]
[341195730,1730604336974,1566.9377507,9e-05,2]
[341195731,1730604338457,-174.26475,0.00014442,2]
[341195732,1730604356402,154.97835186,6.94e-05,2]
[341195733,1730604368885,150.0,0.0001,2]
[341195734,1730604368905,150.0,0.0001,2]
[341195735,1730604368926,150.0,0.0001,2]
[341195736,1730604368946,150.0,0.0001,2]
[341195737,1730604369061,2.9742272,0.0001,2]
[341195738,1730604428187,-253.25731013,0.0001437,2]
[341195739,1730604446729,2700.0,0.000155,5]
[341195740,1730604448824,5500.0,0.000156,5]
[341195741,1730604450902,8300.0,0.000157,5]
[341195742,1730604452987,11100.0,0.000158,5]
[341195743,1730604455091,13900.0,0.000159,5]
[341195744,1730604483192,12945.03613887,0.000145,3]
[341195745,1730604483217,100000.0,0.000145,3]
[341195746,1730604483245,24259.25749695,0.000145,3]
[341195747,1730604500540,-1651.07299278,0.0001439,2]
[341195748,1730604514863,484.80556841,0.000129,2]
[341195749,1730604522727,61210.48687555,0.0002509,120]
[341195750,1730604527229,150.0,0.00013,2]
[341195751,1730604527251,0.34592202,0.00013,2]
[341195752,1730604528180,149.65407798,0.000107,2]
[341195753,1730604528204,105.25905571,0.000107,2]
[341195782,1730604632573,-300.0,0.00014999,2]
[341195783,1730604632582,-406.48337091,0.00015,2]
[341195784,1730604632591,-371.21236355,0.00015,2]
[341195785,1730604632601,-939.09124655,0.00015,2]
[341195786,1730604632612,-688.39999162,0.00015,2]
[341195787,1730604632623,-2194.55656055,0.00015,2]
[341195788,1730604632732,-663.698535,0.00015,2]
[341195789,1730604632742,-2966.48754,0.00015,2]
[341195823,1730604638637,-32077.98174444,0.00015,2]
[341195824,1730604638647,-565.58502372,0.000153,2]
[341195825,1730604638658,-152.66,0.00015342,2]
[341195826,1730604638667,-167.79,0.00015342,2]
[341195827,1730604638677,-30801.0,0.0001537,2]
[341195828,1730604638686,-174.26475,0.000155,2]
[341195829,1730604638695,-150.0,0.00015631,2]
[341195830,1730604638704,-500.0,0.000159,2]
[341195831,1730604638713,-500.0,0.00015973,2]
[341195832,1730604638722,-1116.85323588,0.0001599,2]
[341195833,1730604638731,-1116.85323588,0.0001599,2]
[341195834,1730604638740,-1116.85323588,0.0001599,2]
[341195835,1730604638749,-2281.56032068,0.00015995,2]
[341195836,1730604638760,-294.0281258,0.00015995,2]
[341195837,1730604638770,-77626.52567977,0.00016,2]
[341195838,1730604639111,-4529.9985,0.00016,2]
[341195839,1730604639123,-47995.91112574,0.00016,2]
[341195851,1730604640654,-1000.0,0.00016,2]
[341195852,1730604641022,-1405.28875568,0.00016,2]
[341195857,1730604643637,-551.72773639,0.00016,2]
[341195858,1730604643665,-5389.28007467,0.00016,2]
[341195878,1730604646523,-226.93057992,0.000152,2]
[341195879,1730604646533,-1096.46942008,0.00016,2]
[341195880,1730604646672,-4855.4545189,0.00016,2]
[341195883,1730604805222,-270.4714,0.000149,2]
[341195884,1730604805243,-657.224,0.0001568,2]
[341195885,1730604805263,-171.12382013,0.0001568,2]
[341195886,1730604805285,-302.32640067,0.00015839,2]
[341195887,1730604805308,-300.0,0.00015839,2]
[341195888,1730604805330,-300.0,0.00015839,2]
[341195889,1730604805351,-72817.48135153,0.0001584,2]
[341195890,1730604805373,-422.73349133,0.00015916,2]
[341195891,1730604805393,-480.71457208,0.00015916,2]
[341195892,1730604805414,-2952.8167684,0.00015916,2]
[341195893,1730604805433,-2034.61467311,0.00015916,2]
[341195894,1730604805455,-500.0,0.00015973,2]
[341195895,1730604805476,-178790.49352275,0.00016,2]
[341195896,1730604831360,156.589,0.0002499,30]
[341195900,1730605640216,700.0,0.000155,5]
[341195901,1730605642313,1500.0,0.000156,5]
[341195902,1730605644396,2300.0,0.000157,5]
[341195903,1730605646568,3000.0,0.000158,5]
[341195904,1730605648645,3800.0,0.000159,5]
[341195907,1730605831889,-800.0,0.00015308,2]
[341195912,1730605832042,-15763.29578275,0.00015308,2]
[341195913,1730605832055,-3158.66678313,0.00015308,2]
[341195914,1730605832068,-450.0,0.00015308,2]
[341195915,1730605832179,-2214.00929831,0.00015308,2]
[341195916,1730605832192,-1514.02813581,0.00015308,2]
[341195917,1730605832204,-300.0,0.0001534,2]
[341195918,1730605832215,-160.10923153,0.00015341,2]
[341195920,1730605837784,-2001.07282,0.00015341,2]
[341195924,1730605838058,-10266.7702775,0.00015341,2]
[341195925,1730605838076,-669.82065144,0.00015341,2]
[341195926,1730605839109,867.28,0.0001361,2]
[341195927,1730605839740,-602.22,0.00015341,2]
[341195930,1730605839757,-221.34934875,0.00015341,2]
[341195931,1730605839770,-30.24602625,0.00015342,2]
[341195932,1730605840066,-1388.210571,0.00015342,2]
[341195933,1730605840082,-1562.38161764,0.00015342,2]
[341195935,1730605842757,-81652.25468782,0.00015342,2]
[341195936,1730605842898,-294.96252656,0.00015342,2]
[341195937,1730605842907,-154.51,0.00015342,2]
[341195938,1730605842916,-161.28,0.00015342,2]
[341195939,1730605842926,-760.0,0.00015392,2]
[341195940,1730605842935,-162.7,0.00015469,2]
[341195941,1730605842944,-1638.8,0.00015511,2]
[341195942,1730605842954,-3750.0,0.00015588,2]
[341195943,1730605842963,-250.0,0.00015655,2]
[341195944,1730605842972,-397.677569,0.00015778,2]
[341195945,1730605842984,-168.03,0.00015846,2]
[341195946,1730605842993,-150.0,0.00015863,2]
[341195947,1730605843002,-867.28,0.00015874,2]
[341195948,1730605843012,-1000.0,0.000159,2]
[341195949,1730605843023,-1000.0,0.000159,2]
[341195950,1730605843032,-258.15410435,0.000159,2]
[341195951,1730605843041,-2332.3191,0.000159,2]
[341195952,1730605843050,-2500.0,0.000159,2]
[341195953,1730605843062,-500.0,0.000159,2]
[341195954,1730605843071,-180.11604591,0.00015959,2]
[341195955,1730605843080,-182.38432028,0.00015959,2]
[341195956,1730605843089,-186.5309453,0.00015959,2]
[341195957,1730605843098,-500.0,0.00015973,2]
[341195958,1730605843107,-1356.40978208,0.00015985,2]
[341195959,1730605843117,-283.22214364,0.00015985,2]
[341195960,1730605843126,-21110.55268553,0.00015985,2]
[341195961,1730605843136,-521.64076401,0.00015992,2]
[341195962,1730605843144,-75190.32437531,0.00016,2]
[341195963,1730605844508,-6572.86916323,0.00016,2]
[341195969,1730605845897,-5097.359802,0.00016,2]
[341195970,1730605845909,-6836.4509,0.00016,2]
[341195971,1730605845979,-371.35303999,0.00016,2]
[341195972,1730605869304,-320.4763814,0.00015959,2]
[341195973,1730605869328,-1968.54451228,0.00015959,2]
[341195974,1730605869354,-300.0,0.00015999,2]
[341195975,1730605869382,-47410.97910632,0.00016,2]
[341195976,1730605870483,-196.01875054,0.00015959,2]
[341195977,1730605870511,-49803.98124946,0.00016,2]
[341195978,1730605871625,-50000.0,0.00016,2]
[341195979,1730605872513,-50000.0,0.00016,2]
[341195980,1730605873426,-50000.0,0.00016,2]
[341195981,1730605874382,-50000.0,0.00016,2]
[341195982,1730605875242,-50000.0,0.00016,2]
[341195983,1730605876164,-50000.0,0.00016,2]
[341195984,1730605876939,-50000.0,0.00016,2]
[341195985,1730605877994,-281.82232754,0.00015959,2]
[341195986,1730605878019,-49718.17767246,0.00016,2]
[341195987,1730605878689,-50000.0,0.00016,2]
[341195988,1730605879886,-50000.0,0.00016,2]
[341195989,1730605880650,-50000.0,0.00016,2]
[341195990,1730605881575,-50000.0,0.00016,2]
[341195991,1730605882481,-50000.0,0.00016,2]
[341195992,1730605883358,-50000.0,0.00016,2]
[341195993,1730605884227,-50000.0,0.00016,2]
[341195994,1730605885057,-50000.0,0.00016,2]
[341195995,1730605885965,-50000.0,0.00016,2]
[341195996,1730605886846,-50000.0,0.00016,2]
[341195997,1730605887837,-525.779,0.0001568,2]
[341195998,1730605887862,-49474.221,0.00016,2]
[341195999,1730605889407,-50000.0,0.00016,2]
[341196000,1730605890927,-2365.2511,0.000159,2]
[341196001,1730605890953,-47634.7489,0.00016,2]
[341196002,1730605893025,-188.81476242,0.00015959,2]
[341196003,1730605893050,-49811.18523758,0.00016,2]
[341196004,1730605894134,-50000.0,0.00016,2]
[341196006,1730605946452,159.95,0.00024877,30]
[341196007,1730605948129,-155.15,0.00015342,2]
[341196008,1730605948154,-14073.70179036,0.00015948,2]
[341196009,1730605948179,-904.27318806,0.00015959,2]
[341196010,1730605948202,-34866.87502158,0.00016,2]
[341196011,1730606828384,400.0,0.000155,5]
[341196012,1730606830481,800.0,0.000156,5]
[341196013,1730606832585,1200.0,0.000157,5]
[341196014,1730606834671,1600.0,0.000158,5]
[341196015,1730606836773,2000.0,0.000159,5]
[341196038,1730606954646,150.0,0.00012794,2]
[341196039,1730606954665,150.0,0.00012794,2]
[341196040,1730606954688,150.0,0.00012794,2]
[341196041,1730606954707,150.0,0.00012794,2]
[341196042,1730606954728,150.0,0.00012794,2]
[341196043,1730606954748,142.65,0.00012794,2]
[341196047,1730607031690,-420.75153955,0.00014655,2]
[341196048,1730607031701,-170.93846045,0.00014655,2]
[341196049,1730607031711,-558.28044128,0.00014685,2]
[341196050,1730607031722,-1230.17955872,0.00014685,2]
[341196051,1730607031732,-174.95,0.000148,2]
[341196052,1730607031741,-4669.87044128,0.00014814,2]
[341196053,1730607031752,-700.0,0.00014814,2]
[341196054,1730607031763,-450.80231563,0.00014814,2]
[341196055,1730607031778,-5007.79527781,0.00014814,2]
[341196056,1730607031789,-2320.96704111,0.00014814,2]
[341196057,1730607031799,-10750.56492417,0.00014814,2]
[341196058,1730607031809,-608.0,0.00014833,2]
[341196059,1730607031818,-2078.46,0.00014846,2]
[341196060,1730607031827,-58.03399911,0.0001487,2]
[341196061,1730607031851,-536.18600089,0.0001487,2]
[341196062,1730607031860,-152.46653197,0.000149,2]
[341196063,1730607031871,-616.97748172,0.000149,2]
[341196064,1730607031905,-858.16390953,0.000149,2]
[341196077,1730607037693,-250.0,0.00014832,2]
[341196078,1730607037703,-1372.39207678,0.000149,2]
[341196079,1730607037714,-279.187451,0.00014902,2]
[341196080,1730607037799,-852.492549,0.00014902,2]
[341196081,1730607037809,-170.23,0.00014906,2]
[341196082,1730607037818,-309.72,0.00014909,2]
[341196083,1730607037828,-500.0,0.00014913,2]
[341196084,1730607037838,-41.59789446,0.00014916,2]
[341196085,1730607037902,-225.87210554,0.00014916,2]
[341196086,1730607037911,-892.65,0.00015057,2]
[341196087,1730607037920,-153.74,0.00015342,2]
[341196088,1730607037930,-500.0,0.00015502,2]
[341196089,1730607037940,-500.0,0.00015502,2]
[341196090,1730607037950,-214.66606564,0.00015502,2]
[341196091,1730607037959,-150.0,0.00015541,2]
[341196092,1730607037970,-594.22,0.00015614,2]
[341196093,1730607037979,-547.599,0.0001568,2]
[341196094,1730607037988,-225.83457882,0.0001578,2]
[341196095,1730607038003,-2570.45760697,0.0001578,2]
[341196096,1730607038012,-180.75677569,0.00015781,2]
[341196098,1730607038021,-172.65968221,0.000158,2]
[341196100,1730607038030,-189.6657,0.000158,2]
[341196102,1730607038040,-250.0,0.00015815,2]
[341196104,1730607038049,-549.64,0.00015815,2]
[341196106,1730607038059,-253.25731013,0.0001582,2]
[341196108,1730607038068,-360.74785424,0.00015823,2]
[341196123,1730607039968,-265.56166385,0.00015713,2]
[341196124,1730607039984,-159.83065497,0.00015713,2]
[341196125,1730607039997,-453.41434502,0.000158,2]
[341196126,1730607040014,-654.24017517,0.000158,2]
[341196127,1730607040030,-1392.34547981,0.000158,2]
[341196128,1730607040043,-188.89214576,0.00015823,2]
[341196129,1730607040057,-549.64,0.00015831,2]
[341196130,1730607040069,-549.64,0.0001584,2]
[341196131,1730607040081,-549.64,0.00015848,2]
[341196132,1730607040090,-549.64,0.00015856,2]